fUST/lending_fUST_20240729
["ID","MTS","AMOUNT","RATE_DAILY","PERIOD"]
[333505965,1722220239416,-500.0,0.00015682,2]
[333505966,1722220239426,-500.0,0.00015682,2]
[333505967,1722220239436,-500.0,0.00015682,2]
[333505968,1722220239446,-311.17411934,0.00015682,2]
[333505978,1722220242038,-188.82588066,0.00015682,2]
[333505979,1722220242047,-74.96411934,0.00015682,2]
[333505992,1722220243885,-438.14898994,0.00015682,2]
[333505994,1722220243895,-253.05807115,0.00015682,2]
[333505996,1722220243907,-395.48077854,0.00015682,2]
[333505997,1722220243916,-500.0,0.00015682,2]
[333505998,1722220243926,-500.0,0.00015682,2]
[333505999,1722220243935,-500.0,0.00015682,2]
[333506000,1722220243945,-500.0,0.00015682,2]
[333506001,1722220243954,-500.0,0.00015682,2]
[333506002,1722220243963,-500.0,0.00015682,2]
[333506003,1722220243973,-659.09,0.00015682,2]
[333506004,1722220243982,-500.0,0.00015682,2]
[333506005,1722220243992,-500.0,0.00015682,2]
[333506006,1722220244002,-500.0,0.00015682,2]
[333506007,1722220244011,-500.0,0.00015682,2]
[333506008,1722220244020,-381.72724128,0.00015682,2]
[333506047,1722220248168,-118.27275872,0.00015682,2]
[333506048,1722220248182,-500.0,0.00015682,2]
[333506049,1722220248196,-504.56029771,0.00015682,2]
[333506050,1722220248209,-500.0,0.00015682,2]
[333506051,1722220248223,-538.47322448,0.00015682,2]
[333506052,1722220248234,-500.0,0.00015682,2]
[333506053,1722220248245,-1057.85,0.00015682,2]
[333506054,1722220248257,-493.60465051,0.00015682,2]
[333506055,1722220248269,-500.0,0.00015682,2]
[333506056,1722220248281,-500.0,0.00015682,2]
[333506057,1722220248292,-153.43902858,0.00015682,2]
[333506058,1722220248307,-346.56097142,0.00015682,2]
[333506059,1722220248319,-500.0,0.00015682,2]
[333506060,1722220248333,-500.0,0.00015682,2]
[333506061,1722220248345,-500.0,0.00015682,2]
[333506062,1722220248356,-500.0,0.00015682,2]
[333506063,1722220248367,-500.0,0.00015682,2]
[333506064,1722220248380,-500.0,0.00015683,2]
[333506065,1722220248392,-500.0,0.00015683,2]
[333506066,1722220248404,-500.0,0.00015683,2]
[333506067,1722220248416,-411.73,0.00015683,2]
[333506068,1722220248427,-234.89,0.00015683,2]
[333506069,1722220248439,-403.0,0.00015683,2]
[333506070,1722220248449,-1500.0,0.00015708,2]
[333506071,1722220248460,-4238.78518136,0.00015708,2]
[333506072,1722220248472,-1382.47255271,0.00015708,2]
[333506073,1722220248484,-492.27173157,0.00015708,2]
[333506074,1722220248495,-6999.1698205,0.00015708,2]
[333506075,1722220248507,-4180.04028286,0.00015712,2]
[333506076,1722220248520,-1687.95945958,0.00015712,2]
[333506079,1722220496700,163.549754,0.00012986,2]
[333506080,1722220902501,1048.0,0.00014,2]
[333506102,1722221141608,163.549754,0.00012986,2]
[333506115,1722221225130,-242.25790357,0.00014247,2]
[333506116,1722221225530,-96.15153643,0.00014247,2]
[333506117,1722221225557,-1104.3289927,0.00014697,2]
[333506118,1722221225579,-372.99263253,0.00015681,2]
[333506119,1722221225603,-58.79742847,0.00015681,2]
[333506120,1722221235120,-273.37336231,0.00015681,2]
[333506121,1722221249095,-3806.68146407,0.0001469,2]
[333506125,1722221360126,-30000.0,0.0001469,2]
[333506126,1722221420287,150.112233,0.00013,2]
[333506238,1722221434351,193.169277,0.00014247,2]
[333506251,1722221440876,-500.0,0.00015681,2]
[333506253,1722221440886,-419.5,0.00015681,2]
[333506255,1722221440896,-500.0,0.00015681,2]
[333506257,1722221440905,-500.0,0.00015681,2]
[333506259,1722221440915,-631.63,0.00015681,2]
[333506262,1722221440927,-500.0,0.00015681,2]
[333506265,1722221440936,-500.0,0.00015681,2]
[333506268,1722221440946,-1013.78,0.00015681,2]
[333506271,1722221440956,-1013.78,0.00015681,2]
[333506273,1722221440966,-383.96,0.00015681,2]
[333506276,1722221440975,-500.0,0.00015681,2]
[333506280,1722221440985,-261.09484277,0.00015681,2]
[333506282,1722221440994,-262.49354102,0.00015681,2]
[333506286,1722221441006,-237.50645898,0.00015681,2]
[333506289,1722221441015,-425.7861199,0.00015681,2]
[333506292,1722221441025,-500.0,0.00015681,2]
[333506295,1722221441035,-500.0,0.00015682,2]
[333506298,1722221441046,-500.0,0.00015682,2]
[333506301,1722221441055,-500.0,0.00015682,2]
[333506304,1722221441066,-507.76756896,0.00015682,2]
[333506307,1722221441075,-500.0,0.00015682,2]
[333506309,1722221441085,-509.6972062,0.00015682,2]
[333506312,1722221441094,-500.0,0.00015682,2]
[333506315,1722221441104,-500.0,0.00015682,2]
[333506319,1722221441114,-500.0,0.00015682,2]
[333506321,1722221441124,-500.0,0.00015682,2]
[333506325,1722221441134,-500.0,0.00015682,2]
[333506329,1722221441145,-500.0,0.00015682,2]
[333506331,1722221441155,-505.89336565,0.00015682,2]
[333506335,1722221441165,-571.67,0.00015682,2]
[333506338,1722221441174,-500.0,0.00015682,2]
[333506341,1722221441184,-500.0,0.00015682,2]
[333506344,1722221441193,-505.44146134,0.00015682,2]
[333506347,1722221441202,-500.0,0.00015682,2]
[333506350,1722221441212,-500.0,0.00015682,2]
[333506353,1722221441221,-502.03612002,0.00015682,2]
[333506356,1722221441230,-500.0,0.00015682,2]
[333506359,1722221441239,-500.0,0.00015682,2]
[333506362,1722221441249,-580.54,0.00015682,2]
[333506364,1722221441258,-500.0,0.00015682,2]
[333506366,1722221441268,-500.0,0.00015682,2]
[333506368,1722221441278,-500.0,0.00015682,2]
[333506370,1722221441287,-500.0,0.00015682,2]
[333506372,1722221441297,-500.0,0.00015682,2]
[333506374,1722221441307,-500.0,0.00015682,2]
[333506376,1722221441317,-500.0,0.00015682,2]
[333506378,1722221441327,-500.0,0.00015682,2]
[333506380,1722221441336,-503.40020222,0.00015682,2]
[333506382,1722221441346,-500.0,0.00015682,2]
[333506384,1722221441356,-500.0,0.00015682,2]
[333506386,1722221441366,-581.06,0.00015682,2]
[333506388,1722221441375,-500.0,0.00015682,2]
[333506390,1722221441385,-500.0,0.00015682,2]
[333506392,1722221441395,-500.0,0.00015682,2]
[333506394,1722221441407,-500.0,0.00015682,2]
[333506396,1722221441417,-500.0,0.00015682,2]
[333506398,1722221441426,-500.0,0.00015682,2]
[333506400,1722221441436,-500.0,0.00015682,2]
[333506402,1722221441446,-500.0,0.00015682,2]
[333506404,1722221441456,-500.0,0.00015682,2]
[333506407,1722221441467,-500.0,0.00015682,2]
[333506409,1722221441476,-500.0,0.00015682,2]
[333506410,1722221441487,-500.0,0.00015682,2]
[333506412,1722221441496,-500.0,0.00015682,2]
[333506415,1722221441507,-500.0,0.00015682,2]
[333506417,1722221441517,-500.0,0.00015682,2]
[333506419,1722221441526,-511.75483943,0.00015682,2]
[333506421,1722221441536,-500.0,0.00015682,2]
[333506423,1722221441548,-500.0,0.00015682,2]
[333506435,1722221441654,-500.0,0.00015682,2]
[333506437,1722221441664,-500.0,0.00015682,2]
[333506439,1722221441674,-500.0,0.00015682,2]
[333506441,1722221441684,-500.0,0.00015682,2]
[333506443,1722221441695,-500.0,0.00015682,2]
[333506445,1722221441704,-647.98962232,0.00015682,2]
[333506447,1722221441714,-500.0,0.00015682,2]
[333506449,1722221441724,-446.58164041,0.00015682,2]
[333506452,1722221441737,-160.64835959,0.00015682,2]
[333506454,1722221441747,-500.0,0.00015682,2]
[333506456,1722221441755,-500.0,0.00015682,2]
[333506458,1722221441765,-500.0,0.00015682,2]
[333506460,1722221441774,-500.0,0.00015682,2]
[333506462,1722221441786,-500.0,0.00015682,2]
[333506464,1722221441795,-500.0,0.00015682,2]
[333506466,1722221441804,-500.0,0.00015682,2]
[333506468,1722221441815,-500.0,0.00015682,2]
[333506470,1722221441824,-500.0,0.00015682,2]
[333506472,1722221441833,-500.0,0.00015682,2]
[333506474,1722221441844,-500.0,0.00015682,2]
[333506476,1722221441855,-500.0,0.00015682,2]
[333506478,1722221441864,-500.0,0.00015682,2]
[333506480,1722221441874,-500.0,0.00015682,2]
[333506483,1722221441884,-500.0,0.00015682,2]
[333506485,1722221441893,-500.0,0.00015682,2]
[333506487,1722221441904,-500.0,0.00015682,2]
[333506489,1722221441915,-1253.31,0.00015682,2]
[333506491,1722221441925,-500.0,0.00015682,2]
[333506493,1722221441934,-500.0,0.00015682,2]
[333506495,1722221441944,-500.0,0.00015682,2]
[333506497,1722221441955,-500.0,0.00015682,2]
[333506499,1722221441965,-1721.81,0.00015682,2]
[333506501,1722221441975,-627.99,0.00015682,2]
[333506504,1722221441987,-500.0,0.00015682,2]
[333506506,1722221441996,-631.53,0.00015682,2]
[333506508,1722221442005,-239.5661103,0.00015682,2]
[333507175,1722221448619,-500.0,0.00015681,2]
[333507179,1722221448633,-301.5838897,0.00015682,2]
[333507181,1722221448643,-3203.12,0.00015682,2]
[333507183,1722221448656,-500.0,0.00015682,2]
[333507185,1722221448666,-482.7069656,0.00015682,2]
[333507187,1722221448675,-443.03096489,0.00015682,2]
[333507189,1722221448685,-500.0,0.00015682,2]
[333507191,1722221448694,-500.0,0.00015682,2]
[333507193,1722221448704,-500.0,0.00015682,2]
[333507195,1722221448713,-581.0708749,0.00015682,2]
[333507197,1722221448723,-292.67,0.00015682,2]
[333507199,1722221448733,-500.0,0.00015682,2]
[333507201,1722221448743,-500.0,0.00015682,2]
[333507203,1722221448752,-500.0,0.00015682,2]
[333507205,1722221448762,-577.26472157,0.00015682,2]
[333507207,1722221448772,-500.0,0.00015682,2]
[333507209,1722221448781,-117.52758334,0.00015682,2]
[333511501,1722221500657,183.27163343,9.999e-05,2]
[333511502,1722221509644,155.07560519,9.999e-05,2]
[333511505,1722221603070,8100.99668069,9.999e-05,2]
[333511526,1722222015690,155.09952884,0.0001212,2]
[333511538,1722222041868,181.18583354,0.0001212,2]
[333511539,1722222081364,163.549754,0.00012986,2]
[333511541,1722222342071,-191.51035431,0.00014147,2]
[333511542,1722222342099,-339.840047,0.00014247,2]
[333511543,1722222342121,-260.7982939,0.00014522,2]
[333511544,1722222342142,-300.0,0.00014689,2]
[333511545,1722222342167,-3149.60060635,0.0001469,2]
[333511546,1722222427147,-779.49709975,0.0001469,2]
[333511547,1722222430168,-185.39284238,0.0001469,2]
[333511548,1722222432111,-765.46396401,0.0001469,2]
[333511549,1722222452116,-500.0,0.0001469,2]
[333511550,1722222454103,-296.28592077,0.000149,2]
[333511551,1722222454125,-262.78250739,0.00015,2]
[333511552,1722222454147,-762.79210516,0.00015,2]
[333511553,1722222546118,-10192.06652326,0.0001469,2]
[333511554,1722222604394,163.549754,0.00012986,2]
[333511594,1722222632221,-259.2501807,0.000149,2]
[333511596,1722222632231,-397.65860746,0.00015,2]
[333511598,1722222632245,-404.61691946,0.00015,2]
[333511600,1722222632258,-1434.93236792,0.00015,2]
[333511603,1722222632270,-2020.1083116,0.00015,2]
[333511605,1722222632282,-164.82791442,0.00015581,2]
[333511607,1722222632294,-164.82791442,0.00015595,2]
[333511609,1722222632306,-164.82791442,0.00015608,2]
[333511611,1722222632316,-182.76638994,0.0001568,2]
[333511613,1722222632327,-500.0,0.0001568,2]
[333511615,1722222632337,-210.9457739,0.0001568,2]
[333511617,1722222632347,-500.0,0.00015681,2]
[333511620,1722222632358,-500.0,0.00015681,2]
[333511622,1722222632369,-500.0,0.00015681,2]
[333511624,1722222632381,-500.0,0.00015681,2]
[333511626,1722222632394,-500.0,0.00015681,2]
[333511629,1722222632404,-500.0,0.00015681,2]
[333511631,1722222632415,-500.0,0.00015681,2]
[333511633,1722222632424,-500.0,0.00015681,2]
[333511635,1722222632435,-500.0,0.00015681,2]
[333511637,1722222632445,-500.0,0.00015681,2]
[333511639,1722222632456,-500.0,0.00015681,2]
[333511641,1722222632467,-231.58398965,0.00015681,2]
[333511644,1722222632478,-587.62,0.00015681,2]
[333511646,1722222632489,-500.0,0.00015681,2]
[333511648,1722222632500,-500.0,0.00015681,2]
[333511650,1722222632511,-191.17,0.00015681,2]
[333511652,1722222632522,-540.98833513,0.00015681,2]
[333511654,1722222632532,-500.0,0.00015681,2]
[333511657,1722222632543,-500.0,0.00015681,2]
[333511659,1722222632553,-555.66593348,0.00015681,2]
[333511661,1722222632564,-500.0,0.00015681,2]
[333511663,1722222632579,-300.55482306,0.00015681,2]
[333511665,1722222632590,-503.68808457,0.00015681,2]
[333511667,1722222632601,-500.0,0.00015681,2]
[333511670,1722222632612,-500.0,0.00015681,2]
[333511672,1722222632622,-500.0,0.00015681,2]
[333511674,1722222632632,-505.54321416,0.00015681,2]
[333511676,1722222632642,-500.0,0.00015681,2]
[333511678,1722222632652,-500.0,0.00015681,2]
[333511680,1722222632663,-504.05901394,0.00015681,2]
[333511682,1722222632673,-508.75893975,0.00015681,2]
[333511685,1722222632684,-504.63809085,0.00015681,2]
[333511687,1722222632694,-556.35,0.00015681,2]
[333511689,1722222632704,-500.0,0.00015681,2]
[333511691,1722222632715,-500.0,0.00015681,2]
[333511693,1722222632726,-582.12,0.00015681,2]
[333511695,1722222632738,-174.7383154,0.00015681,2]
[333511709,1722222632748,-500.0,0.00015681,2]
[333511712,1722222632881,-250.87938558,0.00015681,2]
[333511714,1722222632891,-514.71,0.00015681,2]
[333511716,1722222632900,-500.0,0.00015681,2]
[333511718,1722222632910,-500.0,0.00015681,2]
[333511720,1722222632919,-500.0,0.00015681,2]
[333511722,1722222632930,-500.0,0.00015681,2]
[333511725,1722222632942,-500.0,0.00015681,2]
[333511727,1722222632953,-500.0,0.00015681,2]
[333511729,1722222632962,-500.0,0.00015681,2]
[333511731,1722222632972,-500.0,0.00015681,2]
[333511733,1722222632981,-500.0,0.00015681,2]
[333511735,1722222632992,-500.0,0.00015681,2]
[333511737,1722222633001,-505.23836905,0.00015681,2]
[333511739,1722222633011,-500.0,0.00015681,2]
[333511741,1722222633021,-500.0,0.00015681,2]
[333511743,1722222633031,-500.0,0.00015681,2]
[333511745,1722222633040,-500.0,0.00015681,2]
[333511747,1722222633050,-500.0,0.00015681,2]
[333511749,1722222633060,-500.0,0.00015681,2]
[333511751,1722222633070,-500.0,0.00015681,2]
[333511753,1722222633084,-500.0,0.00015681,2]
[333511755,1722222633094,-440.39,0.00015681,2]
[333511757,1722222633104,-581.93,0.00015681,2]
[333511759,1722222633114,-357.33234792,0.00015681,2]
[333512058,1722222638216,-142.66765208,0.00015681,2]
[333512060,1722222638226,-500.0,0.00015681,2]
[333512062,1722222638236,-500.0,0.00015681,2]
[333512065,1722222638246,-500.0,0.00015681,2]
[333512067,1722222638256,-204.97699976,0.00015681,2]
[333512101,1722222638569,-295.02300024,0.00015681,2]
[333512103,1722222638579,-508.28510947,0.00015681,2]
[333512105,1722222638589,-604.91694421,0.00015681,2]
[333512107,1722222638598,-513.7036411,0.00015681,2]
[333512109,1722222638608,-500.0,0.00015681,2]
[333512111,1722222638618,-500.0,0.00015681,2]
[333512113,1722222638627,-500.0,0.00015681,2]
[333512115,1722222638637,-500.0,0.00015681,2]
[333512117,1722222638646,-500.0,0.00015681,2]
[333512119,1722222638656,-500.0,0.00015681,2]
[333512121,1722222638666,-500.0,0.00015681,2]
[333512123,1722222638675,-500.0,0.00015681,2]
[333512125,1722222638684,-500.0,0.00015681,2]
[333512127,1722222638694,-500.0,0.00015681,2]
[333512129,1722222638703,-500.0,0.00015681,2]
[333512131,1722222638714,-500.0,0.00015681,2]
[333512133,1722222638723,-500.0,0.00015681,2]
[333512135,1722222638733,-500.0,0.00015681,2]
[333512137,1722222638742,-3069.66,0.00015681,2]
[333512139,1722222638752,-1427.72,0.00015681,2]
[333512141,1722222638761,-1774.9,0.00015681,2]
[333512143,1722222638770,-500.0,0.00015681,2]
[333512145,1722222638782,-500.0,0.00015681,2]
[333512148,1722222638792,-500.0,0.00015681,2]
[333512150,1722222638802,-605.22,0.00015681,2]
[333512152,1722222638812,-500.0,0.00015681,2]
[333512153,1722222638821,-350.33626182,0.00015681,2]
[333512155,1722222638831,-500.0,0.00015681,2]
[333512158,1722222638840,-500.0,0.00015681,2]
[333512160,1722222638850,-500.0,0.00015681,2]
[333512161,1722222638860,-500.0,0.00015681,2]
[333512163,1722222638869,-500.0,0.00015681,2]
[333512166,1722222638879,-500.0,0.00015681,2]
[333512168,1722222638888,-500.0,0.00015681,2]
[333512170,1722222638898,-500.0,0.00015681,2]
[333512172,1722222638908,-605.31,0.00015681,2]
[333512174,1722222638917,-638.55849345,0.00015681,2]
[333512176,1722222638927,-500.0,0.00015681,2]
[333512178,1722222638936,-500.0,0.00015681,2]
[333512180,1722222638946,-929.29,0.00015681,2]
[333512182,1722222638956,-929.29,0.00015681,2]
[333512184,1722222638966,-500.0,0.00015681,2]
[333512186,1722222638975,-500.0,0.00015681,2]
[333512188,1722222638985,-559.62,0.00015681,2]
[333512190,1722222638994,-539.58,0.00015681,2]
[333512192,1722222639003,-500.0,0.00015681,2]
[333512194,1722222639013,-239.45241666,0.00015681,2]
[333512196,1722222639022,-202.2190715,0.00015681,2]
[333512612,1722222643532,-497.66204173,0.0001568,2]
[333512613,1722222643543,-297.7809285,0.00015681,2]
[333512614,1722222643552,-500.0,0.00015681,2]
[333512615,1722222643562,-500.0,0.00015681,2]
[333512616,1722222643572,-500.0,0.00015681,2]
[333512617,1722222643581,-260.14789153,0.00015681,2]
[333512807,1722223094337,1000.0,0.00023349,120]
[333512808,1722223094373,163.549754,0.00012986,2]
[333512819,1722223183264,744.29872217,0.00012986,2]
[333512820,1722223192779,10370.40479096,0.00012986,2]
[333512821,1722223558179,-300.0,0.00012985,2]
[333512822,1722223558201,-124.17493016,0.00012986,2]
[333512823,1722223626109,-586.22954862,0.00012986,2]
[333512824,1722223636184,-704.75040765,0.00012986,2]
[333512825,1722223638186,-282.000246,0.00012986,2]
[333512827,1722223749110,-18528.80084403,0.00012986,2]
[333512828,1722223755125,-2843.45454575,0.00012986,2]
[333512829,1722223755150,-163.549754,0.00012986,2]
[333512830,1722223755175,-500.0,0.00013698,2]
[333512831,1722223755199,-500.0,0.00013698,2]
[333512832,1722223755224,-167.07776771,0.00013698,2]
[333512833,1722223755247,-470.10575221,0.00013698,2]
[333512834,1722223755270,-288.29926752,0.00013698,2]
[333512835,1722223755292,-459.9554379,0.00013698,2]
[333512836,1722223755314,-174.42236232,0.00013698,2]
[333512837,1722223755337,-500.0,0.00013698,2]
[333512838,1722223755358,-500.0,0.00013698,2]
[333512839,1722223755380,-576.57122409,0.00013698,2]
[333512840,1722223755402,-500.0,0.00013698,2]
[333512841,1722223755425,-500.0,0.00013698,2]
[333512842,1722223755447,-500.0,0.00013698,2]
[333512843,1722223755470,-500.0,0.00013698,2]
[333512844,1722223755493,-500.0,0.00013698,2]
[333512845,1722223755517,-500.0,0.00013698,2]
[333512846,1722223755538,-395.73298344,0.00013698,2]
[333512847,1722223755559,-500.0,0.00013698,2]
[333512848,1722223755580,-500.0,0.00013698,2]
[333512849,1722223755601,-500.0,0.00013698,2]
[333512850,1722223755623,-500.0,0.00013698,2]
[333512851,1722223755645,-338.85160287,0.00013698,2]
[333512852,1722223755668,-500.0,0.00013698,2]
[333512853,1722223755691,-500.0,0.00013698,2]
[333512854,1722223755711,-500.0,0.00013698,2]
[333512855,1722223755733,-500.0,0.00013698,2]
[333512856,1722223755755,-500.0,0.00013698,2]
[333512857,1722223755776,-500.0,0.00013698,2]
[333512858,1722223755798,-500.0,0.00013698,2]
[333512859,1722223755820,-500.0,0.00013698,2]
[333512860,1722223755841,-500.0,0.00013698,2]
[333512861,1722223755862,-500.0,0.00013698,2]
[333512862,1722223755883,-500.0,0.00013698,2]
[333512863,1722223755903,-500.0,0.00013698,2]
[333512864,1722223755924,-500.0,0.00013698,2]
[333512865,1722223755946,-500.0,0.00013698,2]
[333512866,1722223755967,-500.0,0.00013698,2]
[333512867,1722223755989,-500.0,0.00013698,2]
[333512868,1722223756009,-5485.8182886,0.00013779,2]
[333512869,1722223756029,-1299.612464,0.00014,2]
[333512870,1722223756051,-166.096276,0.00014099,2]
[333512871,1722223756072,-186.24631023,0.00014147,2]
[333512872,1722223756094,-166.096276,0.00014246,2]
[333512873,1722223756114,-193.3685963,0.00014247,2]
[333512874,1722223756138,-350.317531,0.00014247,2]
[333512875,1722223756160,-166.096276,0.00014393,2]
[333512876,1722223756184,-166.096276,0.0001454,2]
[333512877,1722223756207,-166.096276,0.00014687,2]
[333512878,1722223756230,-166.096276,0.00014834,2]
[333512879,1722223756251,-153.0,0.00014941,2]
[333512880,1722223756273,-153.0,0.00014941,2]
[333512881,1722223756294,-153.0,0.00014941,2]
[333512882,1722223756316,-153.0,0.00014941,2]
[333512883,1722223756336,-3055.20677579,0.00015438,2]
[333512884,1722223756357,-217.52939173,0.00015471,2]
[333512885,1722223756378,-1870.41858931,0.000155,5]
[333512886,1722223756398,-2004.08740564,0.000155,2]
[333512887,1722223756419,-30025.5344245,0.000155,2]
[333512954,1722223834866,-918.11959889,0.00014608,2]
[333513006,1722223842104,-2081.88040111,0.00014608,2]
[333513007,1722223842113,-456.045366,0.00014724,2]
[333513008,1722223842122,-441.21146612,0.0001548,2]
[333513009,1722223842132,-329.07402655,0.00015499,2]
[333513010,1722223842143,-500.0,0.00015499,2]
[333513011,1722223842153,-494.67269986,0.00015499,2]
[333513026,1722223843433,-5.32730014,0.00015499,2]
[333513027,1722223843442,-153.59985686,0.00015499,2]
[333513028,1722223843452,-500.0,0.00015499,2]
[333513029,1722223843461,-201.80948727,0.00015499,2]
[333513030,1722223843471,-500.0,0.00015499,2]
[333513031,1722223843480,-500.0,0.00015499,2]
[333513032,1722223843490,-500.0,0.00015499,2]
[333513033,1722223843500,-500.0,0.00015499,2]
[333513034,1722223843509,-259.87240032,0.00015499,2]
[333513035,1722223843519,-24422.3891658,0.000155,2]
[333513036,1722223843529,-152.290472,0.000155,2]
[333513037,1722223843538,-708.944095,0.000155,2]
[333513038,1722223843548,-708.944095,0.000155,2]
[333513039,1722223843558,-151.0,0.000155,2]
[333513040,1722223843568,-427.005911,0.000155,2]
[333513041,1722223843578,-427.005911,0.000155,2]
[333513042,1722223843588,-332.834686,0.000155,2]
[333513043,1722223843597,-151.0,0.000155,2]
[333513044,1722223843607,-378.225874,0.000155,2]
[333513045,1722223843616,-332.834686,0.000155,2]
[333513046,1722223843625,-378.225874,0.000155,2]
[333513047,1722223843635,-1912.585448,0.000155,2]
[333513048,1722223843644,-151.0,0.000155,2]
[333513049,1722223843654,-1912.585448,0.000155,2]
[333513050,1722223843664,-151.0,0.000155,2]
[333513051,1722223843674,-2812.041548,0.000155,2]
[333513052,1722223843684,-2812.041548,0.000155,2]
[333513053,1722223843694,-431.67477,0.000155,2]
[333513054,1722223843703,-4449.07426014,0.00015571,2]
[333513055,1722223843713,-378.54875592,0.0001558,2]
[333513056,1722223843722,-289.01818449,0.00015612,2]
[333513057,1722223843731,-842.644959,0.0001567,2]
[333513058,1722223843742,-842.644959,0.0001567,2]
[333513059,1722223843753,-288.045839,0.0001567,2]
[333513060,1722223843764,-154.790258,0.0001567,2]
[333513061,1722223843773,-154.790258,0.0001567,2]
[333513062,1722223843783,-151.0,0.0001567,2]
[333513063,1722223843794,-228.183222,0.0001567,2]
[333513064,1722223843803,-2291.870897,0.0001567,2]
[333513065,1722223843813,-2291.870897,0.0001567,2]
[333513066,1722223843822,-411.034166,0.0001567,2]
[333513067,1722223843831,-151.0,0.0001567,2]
[333513068,1722223843840,-411.034166,0.0001567,2]
[333513069,1722223843850,-151.0,0.0001567,2]
[333513070,1722223843859,-151.0,0.0001567,2]
[333513071,1722223843868,-1161.938265,0.0001567,2]
[333513072,1722223843877,-1161.938265,0.0001567,2]
[333513073,1722223843887,-1161.938265,0.0001567,2]
[333513074,1722223843896,-151.0,0.0001567,2]
[333513075,1722223843905,-1161.938265,0.0001567,2]
[333513076,1722223843915,-274.202388,0.0001567,2]
[333513077,1722223843924,-405.380921,0.0001567,2]
[333513078,1722223843933,-405.380921,0.0001567,2]
[333513079,1722223843942,-405.380921,0.0001567,2]
[333513080,1722223843953,-405.380921,0.0001567,2]
[333513081,1722223843963,-708.944095,0.0001567,2]
[333513082,1722223843972,-708.944095,0.0001567,2]
[333513083,1722223843982,-708.944095,0.0001567,2]
[333513084,1722223843992,-708.944095,0.0001567,2]
[333513085,1722223844001,-708.944095,0.0001567,2]
[333513086,1722223844010,-708.944095,0.0001567,2]
[333513087,1722223844020,-151.0,0.0001567,2]
[333513088,1722223844029,-151.0,0.0001567,2]
[333513089,1722223844039,-427.005911,0.0001567,2]
[333513090,1722223844049,-427.005911,0.0001567,2]
[333513091,1722223844059,-427.005911,0.0001567,2]
[333513092,1722223844132,-427.005911,0.0001567,2]
[333513093,1722223844158,-427.005911,0.0001567,2]
[333513094,1722223844169,-427.005911,0.0001567,2]
[333513095,1722223844180,-332.834686,0.0001567,2]
[333513096,1722223844189,-332.834686,0.0001567,2]
[333513097,1722223844199,-151.0,0.0001567,2]
[333513098,1722223844209,-332.834686,0.0001567,2]
[333513099,1722223844220,-151.0,0.0001567,2]
[333513100,1722223844231,-332.834686,0.0001567,2]
[333513101,1722223844244,-378.225874,0.0001567,2]
[333513102,1722223844255,-151.0,0.0001567,2]
[333513103,1722223844266,-378.225874,0.0001567,2]
[333513104,1722223844275,-378.225874,0.0001567,2]
[333513105,1722223844284,-378.225874,0.0001567,2]
[333513106,1722223844294,-1912.585448,0.0001567,2]
[333513107,1722223844303,-1912.585448,0.0001567,2]
[333513108,1722223844312,-1912.585448,0.0001567,2]
[333513109,1722223844322,-1912.585448,0.0001567,2]
[333513110,1722223844332,-152.244553,0.0001567,2]